bitfinex-derivatives/quotes_BTCF0:USTF0_20250313
["timestamp","ask_amount","ask_price","bid_price","bid_amount"]
[1741888087910,0.1497,80110.0,80101.0,0.1248638]
[1741888088109,0.1488,80109.0,80102.0,0.1423]
[1741888088417,0.2736523,80109.0,80108.0,0.1248539]
[1741888088610,0.1248601,80104.0,80102.0,0.1423]
[1741888088806,0.1488,80109.0,80102.0,0.292431]
[1741888089009,0.0624283,80107.0,80103.0,0.1248612]
[1741888089216,0.1488,80109.0,80103.0,0.02]
[1741888089217,0.1248601,80104.0,80103.0,0.02]
[1741888090016,0.1248648,80101.0,80100.0,0.00018726]
[1741888090309,0.1248648,80101.0,80100.0,6e-08]
[1741888090509,0.1248882,80086.0,80071.0,0.37272771]
[1741888091113,0.4287,80087.0,80071.0,0.37272771]
[1741888091421,0.1249147,80069.0,80068.0,1.53042763]
[1741888091619,0.1249147,80069.0,80068.0,1.52978763]
[1741888091920,0.1249147,80069.0,80068.0,0.40344543]
[1741888092215,0.1249147,80069.0,80052.0,0.51565873]
[1741888092216,0.1249397,80053.0,80052.0,0.51565873]
[1741888092517,0.0624587,80068.0,80052.0,0.51565873]
[1741888092518,0.2942,80068.0,80052.0,0.51565873]
[1741888092715,0.1249374,80055.0,80053.0,0.1249385]
[1741888092911,0.0624657,80059.0,80054.0,0.124938]
[1741888093110,0.00018738,80061.0,80060.0,0.1249288]
[1741888093714,0.1249288,80060.0,80059.0,0.15]
[1741888093910,0.00018738,80061.0,80052.0,0.52165873]
[1741888093911,0.1249397,80053.0,80052.0,0.52165873]
[1741888094103,0.1239397,80053.0,80052.0,0.51565873]
[1741888094303,0.1200276,80053.0,80052.0,0.51565873]
[1741888094704,0.13163732,80053.0,80052.0,0.51565873]
[1741888094911,0.12863732,80053.0,80052.0,0.51565873]
[1741888095620,0.1170276,80053.0,80052.0,0.51565873]
[1741888095924,0.1170276,80053.0,80040.0,0.00064]
[1741888095925,0.0624715,80051.0,80040.0,0.00064]
[1741888096215,0.1249584,80041.0,80040.0,0.04]
[1741888096409,0.1189584,80041.0,80040.0,0.04]
[1741888097206,0.1189584,80041.0,80040.0,0.1763]
[1741888097509,0.003,80051.0,80040.0,0.1763]
[1741888097714,0.124954,80045.0,80044.0,0.1249531]
[1741888097920,0.1491,80050.0,80040.0,0.1987799]
[1741888098112,0.1249584,80041.0,80040.0,0.1963]
[1741888098306,0.1289584,80041.0,80040.0,0.1963]
[1741888098907,0.1249584,80041.0,80040.0,0.1963]
[1741888099518,0.1249584,80041.0,80040.0,0.06]
[1741888099706,0.12496,80040.0,80039.0,0.00064]
[1741888099910,0.12496,80040.0,80030.0,0.23632]
[1741888099911,0.124974,80031.0,80030.0,0.23632]
[1741888100411,0.124974,80031.0,80029.0,0.1486]
[1741888100412,0.1249756,80030.0,80029.0,0.1486]
[1741888100720,0.4135756,80030.0,80029.0,0.1486]
[1741888101107,0.2886,80030.0,80023.0,0.00187439]
[1741888101309,0.124985,80024.0,80023.0,0.00187439]
[1741888101615,0.1250037,80012.0,80011.0,0.1415]
[1741888102208,0.2972,80013.0,80000.0,0.33576]
[1741888102407,0.1250152,80007.0,80006.0,0.1250097]
[1741888102607,0.00010955,80007.0,80002.0,0.1415]
[1741888102809,0.0625079,80005.0,80002.0,0.1415]
[1741888103120,0.1250178,80003.0,80002.0,0.2665193]
[1741888103424,0.1250209,80001.0,80000.0,0.1]
[1741888103808,0.2972,80004.0,79989.0,0.00072]
[1741888104118,0.2972,80004.0,79991.0,0.1250328]
[1741888104119,0.1250381,79992.0,79991.0,0.1250328]
[1741888104320,0.1250381,79992.0,79991.0,0.2769328]
[1741888104528,0.2932,79992.0,79991.0,0.2769328]
[1741888104820,0.30544733,79992.0,79991.0,0.2769328]
[1741888105005,0.43048233,79992.0,79991.0,0.2769328]
[1741888105316,0.42748233,79992.0,79991.0,0.2769365]
[1741888105621,0.2902,79992.0,79991.0,0.2769365]
[1741888105817,0.1250232,80000.0,79999.0,0.1250188]
[1741888106126,0.0001875,80004.0,80003.0,0.1250178]
[1741888106509,0.0001875,80004.0,80003.0,0.4166178]
[1741888106711,0.0001875,80004.0,80003.0,0.2916]
[1741888106911,0.1252037,80004.0,80003.0,0.4166178]
[1741888107119,0.1252037,80004.0,80003.0,0.2916]
[1741888107309,0.1252037,80004.0,80003.0,0.4166178]
[1741888107711,0.0001875,80004.0,79983.0,0.01235264]
[1741888107906,0.1250412,79989.0,79988.0,0.0625185]
[1741888108318,0.1250412,79989.0,79988.0,0.2077185]
[1741888109021,0.1250412,79989.0,79988.0,0.3543185]
[1741888109221,0.1250412,79988.0,79987.0,0.0018753]
[1741888109414,0.18759,79978.0,79977.0,0.1250517]
[1741888109613,0.18759,79978.0,79977.0,0.2901041]
[1741888110023,0.2873,79980.0,79977.0,0.2901041]
[1741888110322,0.2873,79980.0,79979.0,0.1250553]
[1741888110713,0.4123537,79980.0,79979.0,0.1250553]
[1741888111418,0.4123537,79980.0,79979.0,0.2747553]
[1741888111815,0.0001875,79985.0,79984.0,0.1250475]
[1741888112220,0.1250199,80002.0,79988.0,0.1250412]
[1741888112524,0.1250285,79998.0,79997.0,0.1250225]
[1741888113116,0.1250285,79998.0,79997.0,0.4206225]
[1741888113318,0.1251523,79998.0,79997.0,0.4206225]
[1741888113519,0.1250365,79991.0,79990.0,0.0001875]
[1741888114518,0.1250365,79991.0,79990.0,0.1252256]
[1741888114519,0.4155365,79991.0,79990.0,0.1252256]
[1741888114726,0.4155365,79991.0,79990.0,0.0001875]
[1741888115023,0.4155365,79991.0,79990.0,0.1252256]
[1741888115223,0.2905,79991.0,79990.0,0.1252256]
[1741888115422,0.0001238,79998.0,79990.0,0.0001875]
[1741888115624,0.1389238,79998.0,79997.0,0.1250271]
[1741888115813,0.2639494,79998.0,79997.0,0.1250271]
[1741888116213,0.2669494,79998.0,79997.0,0.1250271]
[1741888116522,0.1250287,79996.0,79995.0,0.4203282]
[1741888116722,0.1250287,79996.0,79995.0,0.2953]
[1741888116923,0.1250365,79991.0,79990.0,0.0001875]
[1741888117223,0.1250365,79991.0,79990.0,0.1252256]
[1741888117824,0.0625174,79993.0,79990.0,0.1252256]
[1741888118024,0.2058174,79993.0,79992.0,0.125035]
[1741888118231,0.1300365,79991.0,79990.0,0.0001875]
[1741888118421,0.13014378,79991.0,79990.0,0.0001875]
[1741888118823,0.27344378,79991.0,79990.0,0.0001875]
[1741888119127,0.26844378,79991.0,79990.0,0.0001875]
[1741888119520,0.26844378,79991.0,79990.0,0.1252256]
[1741888119723,0.14640728,79991.0,79990.0,0.1252256]
[1741888119917,0.27144378,79991.0,79990.0,0.1252256]
[1741888120417,0.27344378,79991.0,79990.0,0.422691]
[1741888120617,0.27344378,79991.0,79990.0,0.4107256]
[1741888120818,0.27844378,79991.0,79990.0,0.2866875]
[1741888121432,0.27344378,79991.0,79990.0,0.0011875]
[1741888121621,0.27844378,79991.0,79990.0,0.0021875]
[1741888122228,0.27844378,79991.0,79990.0,0.0011875]
[1741888122527,0.1250709,79969.0,79964.0,1.08872]
[1741888122720,0.0625346,79971.0,79968.0,0.12522122]
[1741888122914,0.0625346,79971.0,79969.0,0.4133709]
[1741888122915,0.00010792,79970.0,79969.0,0.4133709]
[1741888123317,0.2705425,79988.0,79987.0,0.1250428]
[1741888123530,0.28469051,79988.0,79987.0,0.1250428]
[1741888123730,0.2705425,79988.0,79987.0,0.1250428]
[1741888124124,0.125049,79983.0,79982.0,0.4240491]
[1741888125033,0.1875713,79985.0,79984.0,0.1250475]
[1741888125336,0.1250615,79975.0,79974.0,0.1875929]
[1741888125533,0.1250678,79971.0,79970.0,0.2968]
[1741888126032,0.1250709,79969.0,79964.0,0.00064]
[1741888126226,0.15187129,79969.0,79956.0,0.1468]
[1741888126430,0.15187129,79969.0,79957.0,0.15]
[1741888126631,0.15187129,79969.0,79959.0,0.1250853]
[1741888126828,0.15187129,79969.0,79957.0,0.15]
[1741888127044,0.0625515,79951.0,79950.0,0.0625475]
[1741888127224,0.1876228,79966.0,79965.0,0.125074]
[1741888127419,0.1876532,79952.0,79951.0,0.1250942]
[1741888127623,0.00018762,79958.0,79954.0,0.0625457]
[1741888127827,0.13950223,79957.0,79956.0,0.1250897]
[1741888128022,0.13958983,79957.0,79956.0,0.4319897]
[1741888128224,8.8e-05,79957.0,79956.0,0.4319897]
[1741888129229,0.1250522,79982.0,79981.0,0.1875783]
[1741888129441,0.1250522,79982.0,79981.0,0.3694261]
[1741888129626,0.0625251,79983.0,79977.0,0.0625289]
[1741888129831,0.0625251,79983.0,79972.0,0.0625329]
[1741888129832,0.1250568,79979.0,79978.0,0.1250562]
[1741888130033,0.0625275,79980.0,79977.0,0.2975]
[1741888130236,0.1876264,79963.0,79962.0,0.0625384]
[1741888130437,0.1250819,79962.0,79961.0,0.1542]
[1741888130739,0.2676819,79962.0,79961.0,0.1250834]
[1741888131433,0.2676819,79962.0,79961.0,0.4101834]
[1741888131739,0.1466,79962.0,79961.0,0.4101834]
[1741888132038,0.2716819,79962.0,79961.0,0.4101834]
[1741888132423,0.15904408,79962.0,79961.0,0.4101834]
[1741888132628,0.28412598,79962.0,79961.0,0.4101834]
[1741888133033,0.01644408,79962.0,79961.0,0.4101834]
[1741888133730,0.01744408,79962.0,79961.0,0.4101834]
[1741888133929,0.14552598,79962.0,79961.0,0.4101834]
[1741888134336,0.14252598,79962.0,79961.0,0.4101834]
[1741888134547,0.01944408,79962.0,79961.0,0.4101834]
[1741888135233,0.02044408,79962.0,79961.0,0.4101834]
[1741888135832,0.17164408,79962.0,79961.0,0.4101834]
[1741888136035,0.02044408,79962.0,79961.0,0.4101834]
[1741888136235,0.14552598,79962.0,79961.0,0.4101834]
[1741888136539,0.01744408,79962.0,79961.0,0.4101834]
[1741888136739,0.02044408,79962.0,79961.0,0.4101834]
[1741888137435,0.14552598,79962.0,79961.0,0.4101834]
[1741888137637,0.01644408,79962.0,79961.0,0.4101834]
[1741888137833,0.01944408,79962.0,79961.0,0.4101834]
[1741888138229,0.03384469,79962.0,79961.0,0.4101834]
[1741888138437,0.02240061,79962.0,79961.0,0.4101834]
[1741888138740,0.10991463,79976.0,79968.0,0.1250725]
[1741888138927,0.1250665,79972.0,79968.0,0.1250725]
[1741888139238,0.01219077,79971.0,79968.0,0.1250725]
[1741888139640,0.0625317,79974.0,79968.0,0.4053725]
[1741888139841,0.10991463,79974.0,79968.0,0.4053725]
[1741888140142,0.10991463,79974.0,79973.0,0.1250647]
[1741888140336,0.00625573,79985.0,79980.0,0.1250537]
[1741888140530,0.00625573,79990.0,79980.0,0.1250537]
[1741888140841,0.1250537,79980.0,79979.0,0.283]
[1741888141135,0.15872315,79981.0,79979.0,0.283]
[1741888141343,0.15872315,79981.0,79980.0,0.1250537]
[1741888141841,0.16372315,79981.0,79980.0,0.4191537]
[1741888142046,0.15177602,79981.0,79980.0,0.4191537]
[1741888142536,0.14877602,79981.0,79980.0,0.4191537]
[1741888142737,0.14977602,79981.0,79980.0,0.4191537]
[1741888142932,0.14977602,79981.0,79980.0,0.5591537]
[1741888143133,0.00018762,79987.0,79980.0,0.5591537]
[1741888143134,0.00018762,79987.0,79986.0,0.1250443]
[1741888143334,0.00018762,79987.0,79980.0,0.48237697]
[1741888143541,0.1250522,79981.0,79980.0,0.3341]
[1741888144038,0.1250522,79981.0,79980.0,0.2941]
[1741888144039,0.1270522,79981.0,79980.0,0.2941]
[1741888144346,0.004,79981.0,79980.0,0.4191537]
[1741888144539,0.002,79981.0,79980.0,0.4191537]
[1741888144941,0.1270522,79981.0,79980.0,0.2941]
[1741888145138,0.1290522,79981.0,79980.0,0.2941]
[1741888145334,0.009,79981.0,79980.0,0.4191537]
[1741888146637,0.21020902,79987.0,79980.0,0.4191537]
[1741888146638,0.00018762,79987.0,79980.0,0.3141]
[1741888146931,2e-08,79987.0,79986.0,0.1250443]
[1741888147131,2e-08,79987.0,79986.0,0.5950843]
[1741888147342,2e-08,79987.0,79986.0,0.60709114]
[1741888147543,2e-08,79987.0,79986.0,0.90469114]
[1741888147844,2e-08,79987.0,79986.0,1.02971223]
[1741888148240,2e-08,79987.0,79986.0,1.03171223]
[1741888148431,2e-08,79987.0,79986.0,0.67562109]
[1741888148631,2e-08,79987.0,79986.0,0.4256443]
[1741888149745,2e-08,79987.0,79986.0,0.4236443]
[1741888150144,0.12504282,79987.0,79986.0,0.2986]
[1741888150343,0.41964282,79987.0,79986.0,0.001]
[1741888150548,0.29460002,79987.0,79974.0,0.2909]
[1741888150743,0.1250522,79982.0,79981.0,0.1250512]
[1741888151443,0.2748522,79982.0,79981.0,0.4101512]
[1741888151650,0.4257522,79982.0,79981.0,0.4101512]
[1741888152145,2e-08,79987.0,79981.0,0.2851]
[1741888152349,2e-08,79987.0,79986.0,0.1250443]
[1741888153548,2e-08,79987.0,79986.0,0.2667443]
[1741888154136,2e-08,79987.0,79986.0,0.1417]
[1741888154137,0.12504282,79987.0,79986.0,0.1417]
[1741888154437,0.12504282,79987.0,79986.0,0.1399]
[1741888154638,0.12504282,79987.0,79986.0,0.2649443]
[1741888154835,0.12604282,79987.0,79986.0,0.2649443]
[1741888155645,0.12704282,79987.0,79986.0,0.2649443]
[1741888156044,0.12704282,79987.0,79986.0,0.1399]
[1741888156439,0.12704282,79987.0,79984.0,0.125047]
[1741888156440,0.1250459,79985.0,79984.0,0.125047]
[1741888156639,0.125049,79983.0,79982.0,0.2016251]
[1741888156845,0.4837769,79984.0,79983.0,0.125049]
[1741888157048,0.3361769,79984.0,79983.0,0.125049]
[1741888157751,0.125049,79983.0,79982.0,0.2644502]
[1741888158251,0.273649,79983.0,79982.0,0.2644502]
[1741888158446,0.273649,79983.0,79982.0,0.4060502]
[1741888158954,0.273649,79983.0,79982.0,0.281]
[1741888159145,0.273649,79983.0,79982.0,0.4060506]
[1741888159649,0.1250615,79975.0,79974.0,0.0625312]
[1741888159853,0.1250574,79980.0,79979.0,0.1250522]
[1741888160043,0.1250568,79978.0,79977.0,0.0625288]
[1741888160240,0.1875962,79975.0,79974.0,0.1250624]
[1741888161051,0.1250647,79973.0,79972.0,0.18778332]
[1741888161249,0.1250647,79973.0,79972.0,0.00018762]
[1741888161653,0.1250647,79973.0,79972.0,0.12525382]
[1741888161956,0.1250647,79973.0,79972.0,0.00018762]
[1741888163743,0.1522,79974.0,79945.0,1.38862595]
[1741888163950,0.1250913,79956.0,79955.0,0.2680916]
[1741888164142,0.1250913,79956.0,79955.0,0.183]
[1741888164349,0.1502,79957.0,79945.0,1.38926595]
[1741888164560,0.1876534,79952.0,79951.0,0.0625486]
[1741888164752,0.0625495,79951.0,79948.0,0.0625512]
[1741888165053,0.1251069,79946.0,79945.0,0.42973275]
[1741888165359,0.1251069,79946.0,79945.0,0.42901445]
[1741888165761,0.1251069,79946.0,79945.0,0.73201445]
[1741888166053,0.6260817,79979.0,79945.0,0.60690595]
[1741888166259,0.1475,79954.0,79953.0,0.1250959]
[1741888166455,0.01525904,79990.0,79953.0,0.1250959]
[1741888166456,0.1250841,79961.0,79953.0,0.1250959]
[1741888166662,0.0625353,79970.0,79955.0,0.1250928]
[1741888166663,0.18203271,79967.0,79955.0,0.1250928]
[1741888166856,0.1475,79957.0,79955.0,0.1250928]
[1741888167058,0.1475,79957.0,79955.0,0.2794928]
[1741888167260,0.2774897,79958.0,79957.0,0.1250897]
[1741888167455,0.28990665,79958.0,79957.0,0.2794897]
[1741888167654,0.28990665,79958.0,79957.0,0.4282897]
[1741888168358,0.16481695,79958.0,79957.0,0.4282897]
[1741888168559,0.00018762,79959.0,79957.0,0.4282897]
[1741888168560,0.00018762,79959.0,79958.0,0.1250881]
[1741888168759,0.12527422,79959.0,79958.0,0.4224881]
[1741888169362,0.00018762,79959.0,79958.0,0.4224881]
[1741888170058,0.00018762,79959.0,79958.0,0.76755297]
[1741888170263,0.00018762,79959.0,79958.0,0.6424881]
[1741888170560,0.18203271,79976.0,79968.0,0.1250725]
[1741888170768,0.00087674,79969.0,79968.0,0.1350725]
[1741888171448,0.00087674,79969.0,79968.0,0.4320725]
[1741888171655,0.18222033,79976.0,79975.0,0.1250615]
[1741888172767,0.18222033,79976.0,79969.0,0.07449996]
[1741888172954,0.125075,79967.0,79966.0,0.1250735]
[1741888173155,0.0625331,79972.0,79969.0,0.1250695]
[1741888173357,0.18222033,79976.0,79970.0,0.2846]
[1741888173554,0.18222033,79976.0,79975.0,0.1250615]
[1741888173758,0.18222033,79976.0,79975.0,0.13706248]
[1741888174356,0.18222033,79976.0,79975.0,0.43456248]
[1741888174357,0.12524762,79976.0,79975.0,0.43456248]
[1741888174563,0.12524762,79976.0,79975.0,0.4225615]
[1741888174863,0.12924762,79976.0,79975.0,0.4225615]
[1741888175160,0.00418762,79976.0,79975.0,0.4225615]
[1741888175364,0.16068762,79976.0,79975.0,0.4225615]
[1741888175664,0.16068762,79976.0,79975.0,0.2975]
[1741888175855,0.16068762,79976.0,79975.0,0.4225615]
[1741888176056,0.28574762,79976.0,79975.0,0.4225615]
[1741888176467,0.16068762,79976.0,79975.0,0.4225615]
[1741888176863,0.28174762,79976.0,79975.0,0.4225615]
[1741888177164,0.28674762,79976.0,79975.0,0.4225615]
[1741888177356,0.1250631,79974.0,79973.0,0.1250635]
[1741888177556,0.1250631,79974.0,79973.0,0.13706046]
[1741888177757,0.1250631,79974.0,79973.0,0.13706047]
[1741888177965,0.2815631,79974.0,79973.0,0.13706047]
[1741888178361,0.1565,79974.0,79973.0,0.13706047]
[1741888178761,0.1565,79974.0,79973.0,0.44476047]
[1741888180052,0.00518762,79976.0,79975.0,0.1250615]
[1741888180253,0.12524762,79976.0,79975.0,0.13705847]
[1741888181158,0.28124762,79976.0,79975.0,0.13705847]
[1741888181365,0.15618762,79976.0,79975.0,0.13705847]
[1741888181667,0.15618762,79976.0,79975.0,0.13709917]
[1741888182058,0.00018762,79976.0,79975.0,0.13709917]
[1741888182258,0.00018762,79976.0,79975.0,0.43219917]
[1741888182666,0.12524762,79976.0,79975.0,0.43219917]
[1741888183059,0.13024762,79976.0,79975.0,0.43219917]
[1741888183259,0.13024762,79976.0,79975.0,0.01203767]
[1741888183460,0.44074762,79976.0,79975.0,0.4123615]
[1741888183662,0.44074762,79976.0,79975.0,0.42442305]
[1741888184265,0.00518762,79976.0,79975.0,0.42442305]
[1741888184653,0.13024762,79976.0,79975.0,0.42442305]
[1741888185255,0.27844762,79976.0,79975.0,0.42442305]
[1741888185458,0.15338762,79976.0,79975.0,0.42442305]
[1741888185665,0.00518762,79976.0,79975.0,0.42442305]
[1741888187268,0.00920497,79989.0,79988.0,0.1250412]
[1741888187566,0.18203271,79994.0,79993.0,0.1250334]
[1741888187765,0.18203271,79994.0,79993.0,0.13709495]
[1741888188465,0.18203271,79994.0,79993.0,0.43699495]
[1741888188862,0.18203271,79994.0,79993.0,0.5620051]
[1741888189273,0.18203271,79994.0,79993.0,0.57486363]
[1741888189470,0.18203271,79994.0,79993.0,0.44985348]
[1741888189672,0.18303271,79994.0,79993.0,0.44985348]
[1741888190656,0.08736391,79994.0,79993.0,0.57985348]
[1741888190864,0.21843926,80000.0,79999.0,0.125024]
[1741888191066,0.00018762,80001.0,79999.0,0.125024]
[1741888191067,0.18338478,80021.0,79999.0,0.32245899]
[1741888191270,0.18338478,80021.0,80020.0,0.1249912]
[1741888191462,0.18338478,80021.0,80020.0,0.13743869]
[1741888192071,0.18338478,80021.0,80020.0,0.43343869]
[1741888192259,0.32768478,80021.0,80020.0,0.43343869]
[1741888192465,0.45267438,80021.0,80020.0,0.01244749]
[1741888192661,0.1249975,80016.0,80015.0,0.1566]
[1741888192862,0.1249975,80016.0,80015.0,0.01233571]
[1741888193176,0.1250021,80013.0,80012.0,0.0001875]
[1741888193669,0.3540002,80015.0,79993.0,0.20884281]
[1741888193670,0.0625041,80010.0,79993.0,0.20884281]
[1741888193871,0.1250131,80006.0,80005.0,0.2816146]
[1741888194068,0.1250131,80006.0,80005.0,0.2939846]
[1741888194273,0.2947,80009.0,80008.0,0.12501]
[1741888194472,0.2947,80009.0,80008.0,0.13738]
[1741888195076,0.4197084,80009.0,80008.0,0.13738]
[1741888195763,0.2947,80009.0,80008.0,0.13738]
[1741888196269,0.1517,80009.0,80008.0,0.13738]
[1741888196474,0.1427,80012.0,80008.0,0.01237]
[1741888196672,0.1485,80015.0,80014.0,0.1250006]
[1741888196976,0.0001875,80017.0,80014.0,0.1250006]
[1741888196977,0.0001875,80017.0,80016.0,0.1249975]
[1741888197179,0.0001875,80017.0,80016.0,0.1373675]
[1741888197680,0.1251834,80017.0,80016.0,0.01237]
[1741888197874,0.1250037,80012.0,80011.0,0.1250021]
[1741888198175,0.1250037,80012.0,80011.0,0.13738969]
[1741888198573,0.1250037,80012.0,80011.0,0.01238759]
[1741888198775,0.4261037,80012.0,80011.0,0.13739289]
[1741888199078,0.4261037,80012.0,80011.0,0.43229289]
[1741888199577,0.0624914,80026.0,80016.0,0.1249975]
[1741888199881,0.2932,80021.0,80016.0,0.13743125]
[1741888200074,0.1249933,80019.0,80016.0,0.42883125]
[1741888200269,0.1249948,80018.0,80016.0,0.42883125]
[1741888200475,0.1449875,80017.0,80016.0,0.42883125]
[1741888200779,0.2699834,80017.0,80016.0,0.01243375]
[1741888201081,0.2699834,80017.0,80000.0,0.0001875]
[1741888201082,0.1250162,80004.0,80003.0,0.1474]
[1741888201282,0.1250209,80001.0,80000.0,0.0001875]
[1741888201585,0.1250209,80001.0,80000.0,0.12521]
[1741888201780,0.4424,80003.0,80002.0,0.1250193]
[1741888201985,0.1250209,80001.0,80000.0,0.0001875]
[1741888202275,0.6884,80015.0,80000.0,0.0001875]
[1741888202276,0.0008,80015.0,80014.0,0.1250006]
[1741888202479,0.1456,80015.0,80014.0,0.13756366]
[1741888202677,0.1250133,80007.0,80006.0,0.1250066]
[1741888202872,0.1250133,80007.0,80006.0,0.01256311]
[1741888203075,0.1250098,80009.0,80008.0,0.0625034]
[1741888203076,0.1250137,80009.0,80008.0,0.0625034]
[1741888203278,0.0625022,80012.0,80011.0,0.1250037]
[1741888203483,0.2081022,80012.0,80011.0,0.13759498]
[1741888203682,0.2881,80012.0,80011.0,0.13759498]
[1741888203984,0.1456,80012.0,80011.0,0.13759457]
[1741888204173,0.01221077,80013.0,80011.0,0.13759457]
[1741888204174,0.1425,80016.0,80015.0,0.124999]
[1741888204374,0.1425,80016.0,80015.0,0.13758987]
[1741888204675,0.4130975,80016.0,80015.0,0.13758987]
[1741888204871,0.42540203,80016.0,80015.0,0.13758987]
[1741888205076,0.0001875,80017.0,80016.0,0.1249975]
[1741888205277,0.0001875,80017.0,80016.0,0.13758837]
[1741888205782,0.00187538,80032.0,80016.0,0.37422825]
[1741888205986,0.14612084,80036.0,80020.0,0.20261585]
[1741888206281,0.14612084,80036.0,80035.0,0.1249678]
[1741888206486,0.14612084,80036.0,80035.0,0.15771605]
[1741888207576,0.0001875,80044.0,80043.0,0.1249553]
[1741888207789,0.0001875,80044.0,80043.0,0.19770355]
[1741888208084,0.00187462,80059.0,80058.0,0.1249319]
[1741888208280,0.00187462,80059.0,80058.0,0.01259087]
[1741888208478,0.12680492,80059.0,80058.0,0.01259087]
[1741888208678,0.12680492,80059.0,80058.0,0.13752277]
[1741888208875,0.00187462,80059.0,80058.0,0.13752277]
[1741888209075,0.25494975,80063.0,80062.0,0.1249256]
[1741888209286,0.25494975,80063.0,80062.0,0.19820994]
[1741888209688,0.00012186,80067.0,80062.0,0.07328434]
[1741888209875,0.00012186,80067.0,80063.0,0.03328434]
[1741888210076,0.124921,80065.0,80064.0,0.15810071]
[1741888210577,0.124921,80065.0,80064.0,0.137683]
[1741888210781,0.00012186,80067.0,80066.0,0.1249194]
[1741888211083,0.00012186,80067.0,80066.0,0.0127609]
[1741888211290,0.12503966,80067.0,80066.0,0.2024409]
[1741888211588,0.12503966,80067.0,80066.0,0.3273603]
[1741888211780,0.12503966,80067.0,80066.0,0.34788923]
[1741888211781,0.00012186,80067.0,80066.0,0.34788923]
[1741888212279,0.1522,80084.0,80080.0,0.0624486]
[1741888212483,0.1507,80083.0,80080.0,0.0624486]
[1741888212686,0.1507,80083.0,80066.0,0.18968]
[1741888212986,0.1522,80082.0,80068.0,0.03343504]
[1741888213185,0.01205919,80085.0,80070.0,0.20261585]
[1741888213373,0.12491,80073.0,80072.0,0.1249096]
[1741888213578,0.13711844,80073.0,80072.0,0.01285952]
[1741888213886,0.12491,80073.0,80072.0,0.01285952]
[1741888214581,0.4257085,80073.0,80072.0,0.13768361]
[1741888215286,0.1424,80077.0,80076.0,0.1249038]
[1741888215492,0.1424,80077.0,80076.0,0.13767741]
[1741888215695,0.2673022,80077.0,80076.0,0.13767741]
[1741888215876,0.5681022,80077.0,80076.0,0.01277361]
[1741888216076,0.1249145,80071.0,80067.0,0.12510426]
[1741888216274,0.1249147,80069.0,80068.0,0.03324942]
[1741888216480,0.1424,80077.0,80076.0,0.1249038]
[1741888216689,0.1424,80077.0,80076.0,0.13768946]
[1741888216885,0.1424,80077.0,80068.0,0.1418]
[1741888217103,0.1249147,80069.0,80068.0,0.1418]
[1741888217288,0.2673049,80077.0,80076.0,0.1249038]
[1741888217587,0.2673022,80077.0,80076.0,0.13780394]
[1741888217977,0.1424,80077.0,80076.0,0.13780394]
[1741888218187,0.2673022,80077.0,80076.0,0.13780394]
[1741888218388,0.1424,80077.0,80076.0,0.13780394]
[1741888218693,0.13741604,80082.0,80081.0,0.124896]
[1741888218888,0.1289,80091.0,80088.0,0.124882]
[1741888219084,0.1,80100.0,80088.0,0.124882]
[1741888219085,0.1,80100.0,80091.0,0.1248804]
[1741888219279,0.1,80100.0,80091.0,0.15844267]
[1741888219488,0.1,80100.0,80099.0,0.1248679]
[1741888219789,0.1289,80108.0,80107.0,0.1248555]
[1741888220091,0.13722147,80118.0,80117.0,0.1248399]
[1741888220281,0.68848,80127.0,80117.0,0.1248399]
[1741888220282,0.1248308,80124.0,80123.0,0.1248274]
[1741888220487,0.1248321,80122.0,80121.0,0.1543]
[1741888220679,0.1248321,80122.0,80121.0,0.18819064]
[1741888220877,0.1248321,80122.0,80121.0,0.16733485]
[1741888221594,0.1248445,80114.0,80113.0,0.00018723]
[1741888221895,0.1248445,80114.0,80113.0,0.01307318]
[1741888222193,0.1248445,80114.0,80113.0,0.00018723]
[1741888222383,0.1248445,80114.0,80099.0,0.00187269]
[1741888222694,0.1896,80118.0,80081.0,0.18952]
[1741888222695,0.0624322,80102.0,80081.0,0.18952]
[1741888222887,0.1248944,80082.0,80081.0,0.5544141]
[1741888223190,0.1315,80101.0,80092.0,0.1248767]
[1741888223191,0.0624387,80093.0,80092.0,0.1248767]
[1741888223495,0.1248788,80092.0,80091.0,0.1322]
[1741888223692,0.1873157,80096.0,80095.0,0.1248726]
[1741888223886,0.19946968,80096.0,80095.0,0.1248726]
[1741888224083,0.1248788,80092.0,80091.0,0.2570798]
[1741888224485,0.1248788,80092.0,80091.0,0.1322]
[1741888224784,0.1248898,80085.0,80072.0,0.1304]
[1741888224992,0.1248898,80085.0,80081.0,0.1248952]
[1741888225185,0.1248898,80085.0,80077.0,0.1941508]
[1741888225389,0.1309,80088.0,80077.0,0.1317]
[1741888225588,0.2557858,80088.0,80087.0,0.1248866]
[1741888225889,0.1248795,80092.0,80091.0,0.1248766]
[1741888226087,0.1248898,80087.0,80086.0,0.1248874]
[1741888226388,0.0624378,80094.0,80093.0,0.1248773]
[1741888226579,0.1309,80099.0,80098.0,0.1248695]
[1741888226895,0.1248826,80092.0,80091.0,0.187317]
[1741888227092,0.1309,80099.0,80088.0,0.189]
[1741888227394,0.20448928,80110.0,80088.0,0.209]
[1741888227395,0.00187343,80110.0,80088.0,0.209]
[1741888227589,0.0624317,80102.0,80089.0,0.124881]
[1741888227788,0.01250746,80105.0,80099.0,0.1248664]
[1741888227789,0.1248699,80100.0,80099.0,0.1248664]
[1741888227990,0.0624272,80108.0,80100.0,0.1248664]
[1741888228186,0.1203,80109.0,80100.0,0.1248664]
[1741888228581,0.0624247,80111.0,80100.0,0.2514664]
[1741888228897,0.1203,80116.0,80115.0,0.124843]
[1741888229089,0.00187292,80130.0,80123.0,0.0624139]
[1741888229404,0.00187292,80130.0,80129.0,0.1248212]
[1741888230287,0.12669252,80130.0,80129.0,0.1248212]
[1741888231093,0.1872069,80142.0,80141.0,0.1248009]
[1741888231396,0.0624013,80142.0,80141.0,0.1248009]
[1741888231805,0.18145576,80143.0,80141.0,0.1248009]
[1741888231986,0.18145576,80143.0,80142.0,0.1248009]
[1741888232182,0.0623869,80160.0,80140.0,0.18748]
[1741888232385,0.0623808,80168.0,80142.0,0.0623997]
[1741888232587,0.0623948,80150.0,80143.0,0.18768]
[1741888232791,0.1247978,80144.0,80143.0,0.3124794]
[1741888232987,0.1247978,80144.0,80143.0,0.18768]
[1741888233395,0.1247978,80144.0,80143.0,0.3124794]
[1741888233592,0.0623979,80146.0,80145.0,0.1247963]
[1741888233795,0.0623889,80158.0,80143.0,0.18768]
[1741888234094,0.1218,80161.0,80160.0,0.1247729]
[1741888234287,0.1205,80168.0,80164.0,0.124763]
[1741888234288,0.1247655,80165.0,80164.0,0.124763]
[1741888234682,0.13431786,80167.0,80166.0,0.1247636]
[1741888234886,0.1218,80167.0,80166.0,0.1247636]
[1741888235184,0.12661886,80177.0,80176.0,0.124748]